Cogmind - Beta 9.3 @@@ ROGUE MODE // 2019.12.24 @ 12:35:24 // Winter2019/RPGLIKE Player: stormcleaver5 Result: Destroyed by P-80 Master with Gamma Rifle Performance ------------- Evolutions (7) 3500 Regions Visited (25) 5000 Robots Destroyed (624) 3120 Value Destroyed (32605) 32605 Prototype IDs (70) 1400 Alien Tech Used (2) 400 Bonus (25460) 25460 TOTAL SCORE: 71485 Bonus ------- Triggered High Security 2000 High Alert Combat Kills 20638 Follower Combat Kills 859 Entered Garrisons 800 Used RIF Installer 2000 Network Hubs Disabled 400 Aligned with FarCom 300 Met Zhirov 300 Built Enhanced Grunts 300 A7 Reached Mainframe 300 Scanned by Researcher 500 Friendly Fire -2937 Cogmind --------- Core Integrity 0/900 Matter 307/500 Energy 34/520 System Corruption 13% Temperature Cool (105) Movement Hovering (93) Ox1 Location -3/Research Parts ------- > --- POWER (3) -------- Particle Reactor Light Quantum Reactor Light Quantum Reactor > --- PROPULSION (6) --- Cooled Gravmag System Cooled Gravmag System Antigrav Array Antigrav Array > --- UTILITY (8) ------ Advanced Coolant Injector Precision Matter Filter Advanced Kinecellerator Advanced Weapon Cycler Experimental Phase Shifter EM Dispersion Field Improved Remote Force Field Improved System Backup Module > --- WEAPON (8) ------- Helical Railgun Helical Railgun XL Autogun Array Hypervelocity Mass Driver Hypervelocity Mass Driver > --- INVENTORY (5) ---- Protomatter-82 Overload Amplifier Reaction Control System Cooled Particle Cannon Segregator Peak State ------------ > --- POWER ------------ Particle Reactor Light Quantum Reactor Light Quantum Reactor > --- PROPULSION ------- Cooled Gravmag System Cooled Gravmag System Antigrav Array Antigrav Array > --- UTILITY ---------- Advanced Coolant Injector Precision Matter Filter Advanced Kinecellerator Advanced Weapon Cycler Reaction Control System Experimental Phase Shifter EM Dispersion Field Improved Remote Force Field > --- WEAPON ----------- Helical Railgun Helical Railgun XL Autogun Array Hypervelocity Mass Driver Hypervelocity Mass Driver > --- INVENTORY -------- Protomatter Overload Amplifier Improved System Backup Module Cooled Particle Cannon Segregator [Rating: 207] Favorites ----------- Power F-cell Engine Engine F-cell Engine Power Core Light Nuclear Core Reactor Light Quantum Reactor Propulsion Cooled Gravmag System Leg Enhanced Armored Leg Wheel Compact Wheel Hover Unit Cooled Gravmag System Flight Unit Cooled Nuclear Pulse Thruster Utility Force Field Device Force Field Processor Signal Interpreter Weapon XL Autogun Array Energy Gun EM Pulse Gun Energy Cannon Cooled Particle Cannon Ballistic Gun XL Autogun Array Ballistic Cannon Hypervelocity Mass Driver Launcher Precision Grenade Launcher Special Weapon Enhanced Flamer Build | -11 -10 -10 -10 -9 -8 -8 -8 -8 -7 -7 -6 -6 -6 -6 -5 -5 -5 -5 -4 -4 -4 -4 -4 -4 -3 ------- Run | Scr Mat Min Exi Min Mat Gar Mat Gar Fac Gar Fac Was Fac Gar Fac Upp Upp Zhi Pro Fac Ext Cet Arc Hub Res Slots Evolved 21 | . . 1 2 . 2 . . . 4 . . . 1 . . . . . . 2 . . . 7 2 Power 2 | . . . . . . . . . 1 . . . . . . . . . . . . . . 1 . Propulsion 5 | . . . . . 2 . . . 1 . . . . . . . . . . . . . . . 2 Utility 7 | . . . . . . . . . 2 . . . 1 . . . . . . 2 . . . 2 . Weapon 7 | . . 1 2 . . . . . . . . . . . . . . . . . . . . 4 . Parts Attached 153 | 3 1 2 1 2 10 . . 2 22 1 . 2 3 1 29 . 4 9 2 20 5 . . 12 22 Power 23 | 1 . 1 . . . . . . 5 . . . 2 . 4 . . 2 . 5 . . . 1 2 Engine 11 | 1 . . . . . . . . 4 . . . . . 3 . . 1 . 2 . . . . . Core 4 | . . 1 . . . . . . 1 . . . 1 . . . . . . 1 . . . . . Reactor 8 | . . . . . . . . . . . . . 1 . 1 . . 1 . 2 . . . 1 2 Propulsion 33 | 1 . . . 2 7 . . . 5 1 . 1 . 1 5 . . 3 . 2 . . . . 5 Treads . | . . . . . . . . . . . . . . . . . . . . . . . . . . Leg 1 | . . . . . . . . . . . . . . . . . . . . 1 . . . . . Wheel 2 | 1 . . . 1 . . . . . . . . . . . . . . . . . . . . . Hover 27 | . . . . 1 6 . . . 5 1 . 1 . 1 3 . . 3 . 1 . . . . 5 Flight 3 | . . . . . 1 . . . . . . . . . 2 . . . . . . . . . . Utility 73 | . 1 . . . 3 . . . 8 . . 1 1 . 18 . 4 4 2 11 3 . . 7 10 Device 69 | . . . . . 3 . . . 8 . . 1 1 . 15 . 4 4 2 11 3 . . 7 10 Storage . | . . . . . . . . . . . . . . . . . . . . . . . . . . Processor 4 | . 1 . . . . . . . . . . . . . 3 . . . . . . . . . . Hackware . | . . . . . . . . . . . . . . . . . . . . . . . . . . Protection . | . . . . . . . . . . . . . . . . . . . . . . . . . . Artifact . | . . . . . . . . . . . . . . . . . . . . . . . . . . Weapon 24 | 1 . 1 1 . . . . 2 4 . . . . . 2 . . . . 2 2 . . 4 5 Energy Gun 2 | 1 . . . . . . . . 1 . . . . . . . . . . . . . . . . Energy Cannon 2 | . . . . . . . . . . . . . . . 1 . . . . . 1 . . . . Ballistic Gun 10 | . . . 1 . . . . 1 2 . . . . . 1 . . . . 1 1 . . . 3 Ballistic Cannon 7 | . . . . . . . . . . . . . . . . . . . . 1 . . . 4 2 Launcher 1 | . . . . . . . . . 1 . . . . . . . . . . . . . . . . Special Weapon 2 | . . 1 . . . . . 1 . . . . . . . . . . . . . . . . . Impact Weapon . | . . . . . . . . . . . . . . . . . . . . . . . . . . Slashing Weapon . | . . . . . . . . . . . . . . . . . . . . . . . . . . Piercing Weapon . | . . . . . . . . . . . . . . . . . . . . . . . . . . Special Melee Weapon . | . . . . . . . . . . . . . . . . . . . . . . . . . . Unidentified Prototypes 29 | . . . . . 2 . . . 5 . . . . . 9 . . 4 . 4 . . . 3 2 Parts Lost 1 | . . . . . . . . . . . . . . . . . . . . 1 . . . . . Power . | . . . . . . . . . . . . . . . . . . . . . . . . . . Propulsion . | . . . . . . . . . . . . . . . . . . . . . . . . . . Utility 1 | . . . . . . . . . . . . . . . . . . . . 1 . . . . . Weapon . | . . . . . . . . . . . . . . . . . . . . . . . . . . Highest Loss Streak 1 | . . . . . . . . . . . . . . . . . . . . 1 . . . . . Average Slot Usage (%) 77 | . 98 99 72 57 63 66 66 65 73 76 76 76 77 73 77 78 78 76 78 79 81 81 81 84 83 Engine 4 | . 25 1 . . . . . . 9 7 7 7 1 . 6 7 7 6 7 6 6 6 6 4 . Core 5 | . . 21 16 14 11 11 11 11 4 7 7 7 6 7 . . . . . . . . . . . Reactor 4 | . . . . . . . . . . . . . 5 7 7 7 7 7 7 6 6 6 6 5 11 Wheel 3 | . 25 23 16 1 . . . . . . . . . . . . . . . . . . . . . Hover 22 | . . . . 12 27 33 33 33 30 30 30 30 28 23 27 28 28 28 28 25 25 25 25 19 19 Device 21 | . . . . . 7 11 11 11 21 23 23 23 27 28 27 28 28 26 28 33 37 37 37 36 32 Processor 3 | . 23 23 16 14 4 . . . . . . . . . . . . . . . . . . . . Energy Gun 2 | . 25 23 7 . . . . . . . . . . . . . . . . . . . . . . Ballistic Gun 7 | . . . 8 14 11 11 11 10 8 7 7 7 7 7 6 7 7 7 7 6 5 6 6 4 6 Ballistic Cannon 1 | . . . . . . . . . . . . . . . . . . . . . . . . 11 13 Naked Turns . | . . . . . . . . . . . . . . . . . . . . . . . . . . Heaviest Build 150 | 7 7 9 20 20 22 21 21 21 41 39 39 39 52 51 57 56 56 62 60 63 63 60 60 145 150 Greatest Support 136 | 16 16 16 16 22 44 22 22 22 58 52 52 52 52 52 68 56 56 68 68 68 68 68 68 100 136 Greatest Overweight (x) 18 | . . . 1 1 6 . . . 1 . . . . 1 18 . . 1 . 1 . . . 2 2 Average Overweight (x) . | . . . . . . . . . . . . . . . . . . . . . . . . . 1 Largest Inventory Capacity 5 | . 1 1 1 1 2 2 2 3 4 4 4 5 5 5 5 5 5 5 5 5 5 5 5 5 5 Average Capacity 3 | . . 1 1 1 1 2 2 2 3 4 4 4 5 5 5 5 5 5 5 5 5 5 5 5 5 Most Carried 5 | . 1 1 1 1 2 2 2 3 4 4 4 5 5 5 5 5 5 5 5 5 5 5 5 5 5 Average Carried 3 | . . 1 1 1 1 2 2 2 3 4 4 4 4 5 4 5 5 5 5 4 4 5 5 5 4 Final Capacity 5 | . 1 1 1 1 2 2 2 3 4 4 4 5 5 5 5 5 5 5 5 5 5 5 5 5 5 Final Carried 5 | . 1 1 1 1 2 2 2 3 4 4 4 5 5 5 5 5 5 5 5 5 5 5 5 5 5 Class Distribution -------------------- 66% | Gunner 11% | Mutant 9% | Commander-Gunner 3% | Generator-Gunner 3% | Generator-Executioner Dominant Class ---------------- Mutant | -10/Materials Mutant | -10/Mines Gunner | -10/Exiles Gunner | -9/Mines Gunner | -8/Materials Gunner | -8/Garrison Gunner | -8/Materials Gunner | -8/Garrison Gunner | -7/Factory Gunner | -7/Garrison Gunner | -6/Factory Gunner | -6/Waste Gunner | -6/Factory Gunner | -6/Garrison Gunner | -5/Factory Gunner | -5/Upper Caves Gunner | -5/Upper Caves Gunner | -5/Zhirov Gunner | -4/Proximity Caves Gunner | -4/Factory Commander-Gunner | -4/Extension Commander-Gunner | -4/Cetus Commander-Gunner | -4/Archives Commander-Executioner | -4/Hub_04(d) Generator-Gunner | -3/Research Resources | -11 -10 -10 -10 -9 -8 -8 -8 -8 -7 -7 -6 -6 -6 -6 -5 -5 -5 -5 -4 -4 -4 -4 -4 -4 -3 ----------- Run | Scr Mat Min Exi Min Mat Gar Mat Gar Fac Gar Fac Was Fac Gar Fac Upp Upp Zhi Pro Fac Ext Cet Arc Hub Res Matter Collected 16356 | 197 43 20 . 478 547 620 205 1070 1165 622 . . 866 660 2070 287 227 . 361 1706 1457 390 114 942 2309 Remotely . | . . . . . . . . . . . . . . . . . . . . . . . . . . Salvage Created 29470 | . 443 111 . 406 741 620 205 1232 2225 1117 . . 1076 829 3429 309 224 . 324 3011 4293 207 238 2038 6392 Parts 1568 | . 55 25 . 38 48 45 9 79 106 53 . . 54 52 171 20 12 . 18 144 204 21 17 77 320 Haulers Intercepted 14 | . . . . . 4 . . . . . . . . . 7 . . . . . . . . 3 . Recyclers Shooed 11 | . . . . 2 . . . . . . . . . . 4 . . . . 2 . . . 1 2 Parts Field Recycled . | . . . . . . . . . . . . . . . . . . . . . . . . . . Retrieved Matter . | . . . . . . . . . . . . . . . . . . . . . . . . . . Parts Self-Destructed 47 | . . . . . . . . . . . . . . . . 20 9 . 18 . . . . . . Prevented 2 | . . . . . . . . . . . . . . . . . 2 . . . . . . . . Kills | -11 -10 -10 -10 -9 -8 -8 -8 -8 -7 -7 -6 -6 -6 -6 -5 -5 -5 -5 -4 -4 -4 -4 -4 -4 -3 ------- Run | Scr Mat Min Exi Min Mat Gar Mat Gar Fac Gar Fac Was Fac Gar Fac Upp Upp Zhi Pro Fac Ext Cet Arc Hub Res Combat Hostiles Destroyed 518 | . 17 8 . 14 13 24 4 31 40 26 . . 18 20 50 8 2 . 10 35 60 7 4 20 107 Guns 480 | . 14 4 . 14 13 24 4 31 40 26 . . 17 20 50 8 2 . 10 35 60 7 4 14 83 Cannons 30 | . . . . . . . . . . . . . . . . . . . . . . . . 6 24 AOE 6 | . 2 3 . . . . . . . . . . 1 . . . . . . . . . . . . Classes Destroyed 26 | . 5 1 . 3 3 . . 2 2 . . . . . . . 2 . . 1 2 . . 1 4 Worker 14 | . 4 1 . 3 . . . . 1 . . . . . 3 . . . . 1 . . . . 1 Builder 12 | . . 1 . 1 . . . . . . . . 2 . 2 . . . . 3 2 . . . 1 Tunneler 5 | . . . . . . . . . . . . . . . . . . . . 2 3 . . . . Hauler 14 | . . . . . 4 . . . . . . . . . 7 . . . . . . . . 3 . Recycler 19 | . . . . 1 1 . . . 2 . . . . . 3 . . . . 5 4 . . 2 1 Carrier 4 | . . . . . . . . . . . . . . . . . . . . . . . . 1 3 Mechanic 3 | . . . . . . . . . . . . . . . . . . . . . . . . . 3 Operator 11 | . 1 . . . . . . . 1 . . . 1 . 3 . . . . 1 4 . . . . Drone 2 | . . . . . . . . . . . . . . . . . . . . . 1 . . 1 . Watcher 12 | . 2 . . . . . . . 1 . . . 1 . 2 . . . . 5 . . . . 1 Swarmer 97 | . 6 5 . 9 4 8 2 6 7 14 . . 5 4 11 . . . 6 4 6 . . . . Saboteur 11 | . . . . . . . . 3 . . . . . . 1 . . . . . 1 . . . 6 Grunt 191 | . 11 3 . 2 4 12 . 16 15 6 . . 5 12 15 5 . . 1 16 15 2 . 8 43 Brawler 13 | . . . . 1 . . . . 3 . . . . . 1 1 . . . 1 2 . . 1 3 Duelist 25 | . . . . . . . . 1 3 . . . . . 3 1 . . . . 6 . . . 11 Protector 9 | . . . . . . . . . 2 . . . . . 1 . . . . . . . . . 6 Sentry 77 | . . . . . 4 4 2 8 6 4 . . 5 3 4 1 . . 1 7 17 . 4 4 3 Demolisher 6 | . . . . 2 . . . . . . . . . . . . . . . . 3 . . 1 . Specialist 5 | . . . . . . . . . . . . . . . . . . . . . 5 . . . . Hunter 35 | . . . . . 1 . . . 1 2 . . 2 1 5 . . . 2 4 1 1 . 2 13 Programmer 34 | . . . . . . . . . 3 . . . 1 . 9 . . . . 3 2 . . . 16 Behemoth 3 | . . . . . . . . . . . . . . . . . 1 . . . 2 . . . . Cetus Guard 4 | . . . . . . . . . . . . . . . . . . . . . . 4 . . . Enhanced Grunt 1 | . . . . . . . . . . . . . . . . . . . . . . . . 1 . Lightning 4 | . . . . . . . . . . . . . . . . . . . . . . . . 4 . Investigator 1 | . . . . . . . . . . . . . . . . . . . . . . . . . 1 Striker 1 | . . . . . . . . . . . . . . . . . . . . . . . . . 1 Executioner 5 | . . . . . . . . . . . . . . . . . . . . . . . . . 5 Thug 2 | . . . . . . . . . . . . . . . . . . . . . . 1 . 1 . Savage 1 | . . . . . . . . . . . . . . . . . . . . . . . . 1 . Butcher 1 | . . . . . . . . . . . . . . . . . . . . . . . . 1 . Guerrilla 1 | . . . . . . . . . . . . . . . . . . . . . . . . 1 . Mutant 1 | . . . . . . . . . . . . . . . . . 1 . . . . . . . . Best Kill Streak 33 | . 7 3 . 4 5 10 2 10 10 12 . . 9 10 12 5 1 . 5 9 33 4 4 9 26 Combat Bots Only 26 | . 6 3 . 4 3 10 2 10 9 12 . . 4 10 9 5 1 . 5 8 26 4 4 9 25 Max Kills in Single Turn 3 | . 2 3 . 2 2 2 2 3 2 2 . . 2 1 2 1 1 . 2 3 2 1 2 3 3 Gunslinging 2 | . . . . . . . . . . . . . . . . . . . . . . . . . 2 Exploded 3 | . 1 3 . . . . . . . . . . 1 . . . . . . . . . . . . Melee . | . . . . . . . . . . . . . . . . . . . . . . . . . . Uniques/NPCs Destroyed . | . . . . . . . . . . . . . . . . . . . . . . . . . . Combat | -11 -10 -10 -10 -9 -8 -8 -8 -8 -7 -7 -6 -6 -6 -6 -5 -5 -5 -5 -4 -4 -4 -4 -4 -4 -3 -------- Run | Scr Mat Min Exi Min Mat Gar Mat Gar Fac Gar Fac Was Fac Gar Fac Upp Upp Zhi Pro Fac Ext Cet Arc Hub Res Damage Taken 9320 | . 723 276 . 153 300 222 7 232 346 297 . . 178 247 605 48 23 . 84 220 520 554 45 1126 3114 Core 7412 | . 600 237 . 118 238 167 5 179 271 233 . . 138 184 467 36 17 . 65 171 411 466 37 891 2481 Absorbed by Shields 3460 | . . . . . . . . . . . . . 182 260 530 49 24 . 89 223 512 205 48 238 1100 Redirected to Core 6298 | . 390 121 . 109 197 167 5 158 255 219 . . 109 149 438 36 17 . 60 164 341 311 28 843 2181 Core Remaining (%) 86 | 100 . . . 100 . . . 100 . 96 . . . 91 . . . . 100 . . . . 18 . Volleys Fired 1151 | . 86 27 . 24 32 54 3 68 63 48 . . 39 43 122 14 10 . 17 94 120 29 11 38 209 Largest 5 | . 1 2 . 1 1 1 1 1 1 1 . . 1 1 1 1 1 . 1 1 1 1 1 5 5 Hottest 324 | . 40 120 . 60 60 60 60 60 60 60 . . 60 60 60 60 60 . 60 60 90 60 60 324 324 Shots Fired 1494 | . 86 29 . 24 32 54 3 68 63 48 . . 43 44 121 14 10 . 17 94 120 29 11 88 496 Gun 1235 | . 86 27 . 24 32 54 3 65 63 48 . . 43 44 121 14 10 . 17 94 119 29 11 38 293 Cannon 254 | . . . . . . . . . . . . . . . . . . . . . 1 . . 50 203 Launcher . | . . . . . . . . . . . . . . . . . . . . . . . . . . Special 5 | . . 2 . . . . . 3 . . . . . . . . . . . . . . . . . Kinetic 1375 | . . . . 24 32 54 3 65 63 48 . . 43 44 121 14 10 . 17 94 119 29 11 88 496 Thermal 6 | . . 2 . . . . . 3 . . . . . . . . . . . . 1 . . . . Explosive . | . . . . . . . . . . . . . . . . . . . . . . . . . . Electromagnetic 113 | . 86 27 . . . . . . . . . . . . . . . . . . . . . . . Robot Hit Streak 79 | . 18 10 . 18 13 21 5 38 29 20 . . 19 41 63 28 18 . 16 79 51 52 32 62 46 Robot Miss Streak 8 | . 2 3 . 5 8 2 2 3 3 2 . . 3 2 2 1 2 . 2 2 2 1 1 6 4 Penetration Max 2 | . . . . . . . . . . . . . . . . . . . . . . . . 1 2 Secondary Targets 6 | . . . . . . . . . . . . . . . . . . . . . . . . . 6 Max Gunslinging Chain 2 | . . . . . . . . . . . . . . . . . . . . . . . . . 2 Shots Hit Robots 1256 | . 66 23 . 22 29 45 3 59 63 38 . . 39 35 121 14 9 . 17 88 116 21 11 63 374 Core Hits 1115 | . 27 13 . 19 23 34 4 62 73 34 . . 33 40 115 16 6 . 16 100 142 25 11 57 265 Critical Hits 87 | . . . . . . . . 1 . . . . . . . . . . . . . . . 18 68 Critical Kills 34 | . . . . . . . . 1 . . . . . . . . . . . . . . . 8 25 Critical Parts Destroyed 46 | . . . . . . . . . . . . . . . . . . . . . . . . 8 38 Melee Attacks . | . . . . . . . . . . . . . . . . . . . . . . . . . . Impact . | . . . . . . . . . . . . . . . . . . . . . . . . . . Slashing . | . . . . . . . . . . . . . . . . . . . . . . . . . . Piercing . | . . . . . . . . . . . . . . . . . . . . . . . . . . Sneak Attacks . | . . . . . . . . . . . . . . . . . . . . . . . . . . Combat Hostiles . | . . . . . . . . . . . . . . . . . . . . . . . . . . Follow-up Attacks . | . . . . . . . . . . . . . . . . . . . . . . . . . . Damage Inflicted 89777 | . 1206 412 . 1077 1506 3068 173 4095 4685 2234 . . 3522 3043 10567 1221 825 . 1566 8671 11647 2250 1273 4280 22456 Guns 84351 | . 964 282 . 1077 1506 3068 173 4060 4685 2234 . . 2876 3043 10435 1221 825 . 1566 8334 11647 2250 1254 3246 19605 Cannons 3324 | . . . . . . . . . . . . . . . . . . . . . . . . 473 2851 Explosions 2035 | . 242 117 . . . . . . . . . . 646 . 132 . . . . 337 . . . 561 . Melee . | . . . . . . . . . . . . . . . . . . . . . . . . . . Ramming 19 | . . . . . . . . . . . . . . . . . . . . . . . 19 . . Kinetic 86429 | . . . . 1077 1506 3068 173 4060 4685 2234 . . 2876 3043 10435 1221 825 . 1566 8334 11647 2250 1254 3719 22456 Thermal 876 | . 242 130 . . . . . 35 . . . . . . 132 . . . . 337 . . . . . Explosive 646 | . . . . . . . . . . . . . 646 . . . . . . . . . . . . Electromagnetic 1807 | . 964 282 . . . . . . . . . . . . . . . . . . . . . 561 . Impact . | . . . . . . . . . . . . . . . . . . . . . . . . . . Slashing . | . . . . . . . . . . . . . . . . . . . . . . . . . . Piercing . | . . . . . . . . . . . . . . . . . . . . . . . . . . Highest Corruption 12 | . . . . . 2 2 2 2 1 . . 9 9 7 5 3 3 2 2 1 2 . . 8 12 Average Corruption 3 | . . . . . 2 2 2 2 1 . . 9 7 4 1 3 2 2 1 1 1 . . 3 7 Corruption Purged 19 | . . . . . . . . . 1 . . . 4 3 5 . 1 . 2 . 2 . . . 1 Effects 112 | . . . . . . 2 3 5 . . . 1 27 13 9 3 2 2 1 . 3 . . 8 33 Message Errors 14 | . . . . . . . . 1 . . . . 2 2 1 2 . . . . 1 . . 1 4 Matter Fused 21 | . . . . . . . . . . . . . 11 4 2 1 1 . . . . . . . 2 Heat Flow Errors 6 | . . . . . . . 2 1 . . . . 1 1 . . . 1 . . . . . . . Energy Discharges 13 | . . . . . . 2 1 3 . . . . 3 1 . . . 1 1 . . . . . 1 Parts Rejected 2 | . . . . . . . . . . . . 1 . 1 . . . . . . . . . . . Data Loss (minor) 16 | . . . . . . . . . . . . . 5 2 4 . 1 . . . 2 . . 1 1 Data Loss (major) 1 | . . . . . . . . . . . . . . . . . . . . . . . . . 1 Misfires 5 | . . . . . . . . . . . . . 4 1 . . . . . . . . . . . Alerts 1 | . . . . . . . . . . . . . . . . . . . . . . . . . 1 Targeting Errors 27 | . . . . . . . . . . . . . 1 1 1 . . . . . . . . 4 20 Weapon Failures 6 | . . . . . . . . . . . . . . . 1 . . . . . . . . 2 3 Overload Shots 1 | . . . . . . . . . . . . . . . . . . . . . 1 . . . . Overflow Damage 274 | . . . . . . . . . . . . . 203 . 1 . . . . 57 . . 9 . 4 Projectiles 4 | . . . . . . . . . . . . . . . . . . . . . . . . . 4 Explosions 261 | . . . . . . . . . . . . . 203 . 1 . . . . 57 . . . . . Melee 9 | . . . . . . . . . . . . . . . . . . . . . . . 9 . . Knockbacks 16 | . . . . . . . . . . . . . . . . . . . . . . . . . 16 Impact . | . . . . . . . . . . . . . . . . . . . . . . . . . . Kinetic 15 | . . . . . . . . . . . . . . . . . . . . . . . . . 15 Secondary 1 | . . . . . . . . . . . . . . . . . . . . . . . . . 1 Self-Inflicted Damage 296 | . 73 . . . . . . . 60 . . . . . 62 . . . . . . . 9 92 . Shots 5 | . 2 . . . . . . . 1 . . . . . 1 . . . . . . . . 1 . Rammed 1 | . . . . . . . . . . . . . . . . . . . . . . . 1 . . Targets Rammed 1 | . . . . . . . . . . . . . . . . . . . . . . . 1 . . Kicked . | . . . . . . . . . . . . . . . . . . . . . . . . . . Crushed . | . . . . . . . . . . . . . . . . . . . . . . . . . . Highest Temperature 543 | . 66 105 . 296 347 269 151 247 157 197 . . 216 189 246 194 197 93 194 192 198 199 198 359 543 Average Temperature 89 | . 29 34 . 100 88 72 52 81 54 60 . . 62 63 80 99 85 52 104 74 90 98 99 110 124 Received Heat Transfer 1555 | . 288 129 . . 72 81 . 126 84 39 . . 31 70 42 22 . . 4 33 79 4 8 91 352 Effects 12 | . . . . 1 1 . . . . . . . . . . . . . . . . . . . 10 Shutdowns 3 | . . . . . . . . . . . . . . . . . . . . . . . . . 3 Energy Bleed 2 | . . . . 1 . . . . . . . . . . . . . . . . . . . . 1 Interference 4 | . . . . . 1 . . . . . . . . . . . . . . . . . . . 3 Matter Decay 1 | . . . . . . . . . . . . . . . . . . . . . . . . . 1 Short Circuit 2 | . . . . . . . . . . . . . . . . . . . . . . . . . 2 Siege Activations . | . . . . . . . . . . . . . . . . . . . . . . . . . . Robots Corrupted 6 | . 2 1 . . . . . . . . . . . . . . . . . . . . . 3 . Combat Hostiles 2 | . 1 1 . . . . . . . . . . . . . . . . . . . . . . . Parts Fried 14 | . 7 1 . . . . . . . . . . . . . . . . . . 1 . . 5 . Impact Corruptions 1 | . . . . . . . . . . . . . . . . . . . . . . . 1 . . Robots Melted . | . . . . . . . . . . . . . . . . . . . . . . . . . . Combat Hostiles . | . . . . . . . . . . . . . . . . . . . . . . . . . . Parts Melted 1 | . . . . . . . . . . . . . . . . . . . . . 1 . . . . Heat Transferred 941 | . 350 180 . . . . . 111 . . . . . . 100 . . . . 200 . . . . . Parts Sabotaged . | . . . . . . . . . . . . . . . . . . . . . . . . . . Parts Stolen . | . . . . . . . . . . . . . . . . . . . . . . . . . . Parts Stripped . | . . . . . . . . . . . . . . . . . . . . . . . . . . Power Chain Reactions 5 | . 4 1 . . . . . . . . . . . . . . . . . . . . . . . Missiles Intercepted . | . . . . . . . . . . . . . . . . . . . . . . . . . . Alert | -11 -10 -10 -10 -9 -8 -8 -8 -8 -7 -7 -6 -6 -6 -6 -5 -5 -5 -5 -4 -4 -4 -4 -4 -4 -3 ------- Run | Scr Mat Min Exi Min Mat Gar Mat Gar Fac Gar Fac Was Fac Gar Fac Upp Upp Zhi Pro Fac Ext Cet Arc Hub Res Peak Influence 4349 | . 311 492 . 223 520 896 610 1579 1860 1998 1100 400 886 1306 1973 . . . . 2098 4349 2897 1392 2694 4323 Average Influence 1141 | . 172 324 . 126 247 629 549 970 1134 1714 1100 385 614 1020 1337 . . . . 1062 1962 2782 1376 1589 2337 Maximum Alert Level 5 | . 1 2 . 1 2 3 2 4 5 5 4 2 3 4 5 . . . . 5 5 5 4 5 5 Low Security (%) 9 | 100 48 11 . 61 53 . . . . . . . . . . . . . . 6 . . . . . Level 1 13 | . 51 64 . 38 18 18 . 1 . . . 78 22 . . . . . . 9 . . . . . Level 2 11 | . . 23 . . 28 40 100 48 . . . 21 13 5 . . . . . 21 . . . 21 . Level 3 19 | . . . . . . 41 . 8 66 . . . 64 47 34 . . . . 5 . . . 11 . Level 4 21 | . . . . . . . . 42 11 28 100 . . 47 29 . . . . 40 64 . 100 9 20 Level 5 15 | . . . . . . . . . 22 62 . . . . 35 . . . . 8 7 100 . 57 19 High Security 9 | . . . . . . . . . . 8 . . . . . . . . . 8 27 . . . 59 Max Security . | . . . . . . . . . . . . . . . . . . . . . . . . . . Squads Dispatched 102 | . 4 . . . 4 . . . 13 . . . 11 . 13 . . . . 5 10 . . 8 34 Investigation 22 | . 3 . . . . . . . 5 . . . 5 . 3 . . . . 3 2 . . 1 . Extermination 6 | . . . . . . . . . 2 . . . 2 . 2 . . . . . . . . . . Reinforcement 16 | . 1 . . . 1 . . . . . . . 1 . 5 . . . . 1 2 . . 5 . Assault 50 | . . . . . . . . . 5 . . . . . 2 . . . . 1 6 . . 2 34 Garrison 8 | . . . . . 3 . . . 1 . . . 3 . 1 . . . . . . . . . . Intercept . | . . . . . . . . . . . . . . . . . . . . . . . . . . Construction Impeded 1 | . . . . . . . . . . . . . . . . . . . . 1 . . . . . Haulers Reinforced 4 | . . . . . . . . . . . . . . . 4 . . . . . . . . . . Stealth | -11 -10 -10 -10 -9 -8 -8 -8 -8 -7 -7 -6 -6 -6 -6 -5 -5 -5 -5 -4 -4 -4 -4 -4 -4 -3 --------- Run | Scr Mat Min Exi Min Mat Gar Mat Gar Fac Gar Fac Was Fac Gar Fac Upp Upp Zhi Pro Fac Ext Cet Arc Hub Res Distress Signals 12 | . . . . . . . . . . . . . . . 1 . . . . 2 4 1 . 2 2 Communications Jammed . | . . . . . . . . . . . . . . . . . . . . . . . . . . Distress Signals . | . . . . . . . . . . . . . . . . . . . . . . . . . . Times Spotted 707 | . 28 9 . 15 22 26 5 40 43 26 . 6 19 29 65 8 2 . 10 51 73 10 4 38 178 Peak Tracking Total 29 | . 6 3 . 3 6 6 2 9 8 5 . 6 5 4 7 5 1 . 5 6 14 5 3 10 29 Tactical Retreats 33 | . 3 . . . 2 3 . 2 2 . . . 2 7 6 . . . . 2 1 . . . 3 Traps | -11 -10 -10 -10 -9 -8 -8 -8 -8 -7 -7 -6 -6 -6 -6 -5 -5 -5 -5 -4 -4 -4 -4 -4 -4 -3 ------- Run | Scr Mat Min Exi Min Mat Gar Mat Gar Fac Gar Fac Was Fac Gar Fac Upp Upp Zhi Pro Fac Ext Cet Arc Hub Res Traps Triggered 44 | . 1 . . . 3 4 . 3 3 5 1 . 4 2 8 . . . . . 2 . . . 8 Indirectly . | . . . . . . . . . . . . . . . . . . . . . . . . . . Trap Hack Attempts . | . . . . . . . . . . . . . . . . . . . . . . . . . . Triggered . | . . . . . . . . . . . . . . . . . . . . . . . . . . Disarmed . | . . . . . . . . . . . . . . . . . . . . . . . . . . Reprogrammed . | . . . . . . . . . . . . . . . . . . . . . . . . . . Reused . | . . . . . . . . . . . . . . . . . . . . . . . . . . Traps Extracted . | . . . . . . . . . . . . . . . . . . . . . . . . . . Installed . | . . . . . . . . . . . . . . . . . . . . . . . . . . Triggered 2 | . 1 . . . . . . . . . . . . . . . 1 . . . . . . . . Machines | -11 -10 -10 -10 -9 -8 -8 -8 -8 -7 -7 -6 -6 -6 -6 -5 -5 -5 -5 -4 -4 -4 -4 -4 -4 -3 ---------- Run | Scr Mat Min Exi Min Mat Gar Mat Gar Fac Gar Fac Was Fac Gar Fac Upp Upp Zhi Pro Fac Ext Cet Arc Hub Res Machines Disabled 89 | . . 1 . 1 3 4 . 10 3 6 . . 5 4 8 . 1 . . 13 6 . 1 19 4 Max in Single Turn 15 | . . 1 . 1 1 1 . 1 2 1 . . 1 2 2 . 1 . . 6 1 . . 15 1 Garrison Access 7 | . . . . . . . . . 2 . . . . . 2 . . . . 1 . . . 1 1 Garrison Relay 12 | . . . . . . 3 . 4 . 3 . . . 2 . . . . . . . . . . . Phase Generator 1 | . . . . . . . . . . . . . . 1 . . . . . . . . . . . Network Hub 2 | . . . . . . . . . . . . . . . . . . . . . . . . 2 . Energy Cycler 2 | . . . . . . . . . . . . . . . . . . . . . 2 . . . . Machines Sabotaged . | . . . . . . . . . . . . . . . . . . . . . . . . . . Garrisons Compromised . | . . . . . . . . . . . . . . . . . . . . . . . . . . Overloaded Fab Kills . | . . . . . . . . . . . . . . . . . . . . . . . . . . Fab Network Shutdowns 1 | . . . . . . . . . . . . . . . . . . . . 1 . . . . . Hacking | -11 -10 -10 -10 -9 -8 -8 -8 -8 -7 -7 -6 -6 -6 -6 -5 -5 -5 -5 -4 -4 -4 -4 -4 -4 -3 --------- Run | Scr Mat Min Exi Min Mat Gar Mat Gar Fac Gar Fac Was Fac Gar Fac Upp Upp Zhi Pro Fac Ext Cet Arc Hub Res Machines Accessed 103 | . 5 . 2 . 7 . 3 . 16 . . . 9 . 15 . . 9 . 13 8 3 . 6 7 Terminals 59 | . 5 . . . 4 . 2 . 9 . . . 4 . 8 . . . . 7 8 3 . 5 4 Fabricators 10 | . . . . . . . . . 3 . . . 2 . 2 . . . . 2 . . . . 1 Repair Stations 1 | . . . . . . . . . . . . . . . . . . . . . . . . . 1 Recycling Units . | . . . . . . . . . . . . . . . . . . . . . . . . . . Scanalyzers 11 | . . . . . 2 . . . 2 . . . 2 . 2 . . . . 3 . . . . . Garrison Access 11 | . . . . . 1 . 1 . 2 . . . 1 . 3 . . . . 1 . . . 1 1 Total Hacks 294 | . 10 . 24 . 15 . 4 . 38 . . . 29 . 29 . . 48 . 32 15 9 . 14 27 Successful 164 | . 3 . 24 . 8 . 2 . 18 . . . 15 . 7 . . 48 . 20 5 4 . 4 6 Failed 129 | . 7 . . . 7 . 2 . 19 . . . 14 . 22 . . . . 12 10 5 . 10 21 Catastrophic 30 | . 3 . . . 1 . 1 . 5 . . . 3 . 5 . . . . 3 4 . . 1 4 Database Lockouts 1 | . . . . . . . . . 1 . . . . . . . . . . . . . . . . Manual 99 | . 8 . 1 . 5 . 3 . 16 . . . 14 . 17 . . . . 7 4 5 4 6 9 Terminals 153 | . 10 . . . 10 . 3 . 25 . . . 13 . 19 . . . . 15 15 9 . 13 21 Fabricators 18 | . . . . . . . . . 5 . . . 3 . 2 . . . . 4 . . . . 4 Repair Stations 1 | . . . . . . . . . . . . . . . . . . . . . . . . . 1 Recycling Units . | . . . . . . . . . . . . . . . . . . . . . . . . . . Scanalyzers 36 | . . . . . 4 . . . 4 . . . 12 . 4 . . . . 12 . . . . . Garrison Access 14 | . . . . . 1 . 1 . 4 . . . 1 . 4 . . . . 1 . . . 1 1 Terminal Hacks 107 | . 3 . 24 . 3 . . . 8 . . . 3 . 2 . . 48 . 5 3 4 . 2 2 Record 69 | . . . 23 . . . . . 5 . . . 2 . . . . 36 . . . 3 . . . Part Schematic 8 | . . . . . . . . . 1 . . . . . . . . 4 . 2 . . . 1 . Robot Analysis 4 | . . . . . . . . . . . . . . . . . . 4 . . . . . . . Prototype ID Bank 9 | . . . . . 2 . . . . . . . . . . . . 4 . 1 . . . 1 1 Open Door 3 | . . . . . . . . . . . . . . . . . . . . . 2 1 . . . Branch Access Points 6 | . 1 . . . . . . . 1 . . . 1 . 1 . . . . 1 . . . . 1 Emergency Access Points 1 | . . . . . 1 . . . . . . . . . . . . . . . . . . . . Locate Traps 1 | . . . . . . . . . . . . . . . . . . . . . 1 . . . . Recall Reinforcements 1 | . . . . . . . . . . . . . . . 1 . . . . . . . . . . Hauler Manifests 2 | . 1 . . . . . . . 1 . . . . . . . . . . . . . . . . Zone Layout 2 | . 1 . . . . . . . . . . . . . . . . . . 1 . . . . . EX-Prototype ID Bank 1 | . . . 1 . . . . . . . . . . . . . . . . . . . . . . Fabricator Hacks 4 | . . . . . . . . . 2 . . . . . . . . . . 2 . . . . . Load Schematic 2 | . . . . . . . . . 1 . . . . . . . . . . 1 . . . . . Build 2 | . . . . . . . . . 1 . . . . . . . . . . 1 . . . . . Repair Station Hacks . | . . . . . . . . . . . . . . . . . . . . . . . . . . Recycling Unit Hacks . | . . . . . . . . . . . . . . . . . . . . . . . . . . Scanalyzer 23 | . . . . . 4 . . . 1 . . . 8 . . . . . . 10 . . . . . Insert Component 13 | . . . . . 2 . . . 1 . . . 6 . . . . . . 4 . . . . . Analyze 10 | . . . . . 2 . . . . . . . 2 . . . . . . 6 . . . . . Garrison Access Hacks 12 | . . . . . 1 . 1 . 3 . . . 1 . 3 . . . . 1 . . . 1 1 Unlock Access 4 | . . . . . 1 . 1 . 1 . . . 1 . . . . . . . . . . . . Seal Access 6 | . . . . . . . . . 1 . . . . . 2 . . . . 1 . . . 1 1 Coupler Status 2 | . . . . . . . . . 1 . . . . . 1 . . . . . . . . . . Unauthorized Hacks 62 | . . . . . . . 2 . 13 . . . 11 . 9 . . . . 6 6 . . 6 9 Terminals 10 | . . . . . . . 1 . 1 . . . . . 1 . . . . 1 2 . . 1 3 Track 2 | . . . . . . . 1 . . . . . . . . . . . . . . . . . 1 Assimilate 2 | . . . . . . . . . 1 . . . . . . . . . . 1 . . . . . Botnet 6 | . . . . . . . . . . . . . . . 1 . . . . . 2 . . 1 2 Fabricators 5 | . . . . . . . . . 2 . . . 2 . 1 . . . . . . . . . . Report 2 | . . . . . . . . . 1 . . . 1 . . . . . . . . . . . . Siphon 3 | . . . . . . . . . 1 . . . 1 . 1 . . . . . . . . . . Repair Stations . | . . . . . . . . . . . . . . . . . . . . . . . . . . Recycling Units . | . . . . . . . . . . . . . . . . . . . . . . . . . . Scanalyzers 3 | . . . . . . . . . 1 . . . 1 . . . . . . 1 . . . . . Extract 3 | . . . . . . . . . 1 . . . 1 . . . . . . 1 . . . . . Garrison Access . | . . . . . . . . . . . . . . . . . . . . . . . . . . Data Cores Recovered 7 | . . . . . . . . . 1 . . . 1 . 2 . . . . 1 2 . . . . Used 1 | . . . . . . . . . . . . . 1 . . . . . . . . . . . . Hacking Detections 69 | . 4 . . . 4 . 2 . 13 . . . 7 . 10 . . . . 10 6 2 . 5 6 Full Trace Events 12 | . 1 . . . . . . . 3 . . . 2 . 2 . . . . 2 2 . . . . Feedback Events 1 | . . . . . . . . . . . . . . . 1 . . . . . . . . . . Corruption 1 | . . . . . . . . . . . . . . . 1 . . . . . . . . . . Feedback Blocked . | . . . . . . . . . . . . . . . . . . . . . . . . . . Robot Schematics Acquired . | . . . . . . . . . . . . . . . . . . . . . . . . . . Robots Built . | . . . . . . . . . . . . . . . . . . . . . . . . . . Matter . | . . . . . . . . . . . . . . . . . . . . . . . . . . Time . | . . . . . . . . . . . . . . . . . . . . . . . . . . Total Robot Build Rating . | . . . . . . . . . . . . . . . . . . . . . . . . . . Part Schematics Acquired 35 | . . . . . 2 . . . 5 . . . 12 . . . . 4 . 11 . . . 1 . Parts Built 2 | . . . . . . . . . 2 . . . . . . . . . . . . . . . . Matter 530 | . . . . . . . . . 212 . . . . . . . . . . 318 . . . . . Time 222 | . . . . . . . . . 53 . . . . . . . . . . 169 . . . . . Total Part Build Rating 12 | . . . . . . . . . 12 . . . . . . . . . . . . . . . . Parts Repaired . | . . . . . . . . . . . . . . . . . . . . . . . . . . Time . | . . . . . . . . . . . . . . . . . . . . . . . . . . Parts Recycled . | . . . . . . . . . . . . . . . . . . . . . . . . . . Recycled Matter . | . . . . . . . . . . . . . . . . . . . . . . . . . . Retrieved Matter . | . . . . . . . . . . . . . . . . . . . . . . . . . . Retrieved Components . | . . . . . . . . . . . . . . . . . . . . . . . . . . Parts Scanalyzed 8 | . . . . . 2 . . . . . . . 2 . . . . . . 4 . . . . . Part Schematics Acquired 8 | . . . . . 2 . . . . . . . 2 . . . . . . 4 . . . . . Parts Damaged 1 | . . . . . . . . . . . . . 1 . . . . . . . . . . . . Bothacking | -11 -10 -10 -10 -9 -8 -8 -8 -8 -7 -7 -6 -6 -6 -6 -5 -5 -5 -5 -4 -4 -4 -4 -4 -4 -3 ------------ Run | Scr Mat Min Exi Min Mat Gar Mat Gar Fac Gar Fac Was Fac Gar Fac Upp Upp Zhi Pro Fac Ext Cet Arc Hub Res Used RIF Installer 4 | . . . . . . 1 . 1 . 1 . . . 1 . . . . . . . . . . . Robot Detection 1 | . . . . . . . . 1 . . . . . . . . . . . . . . . . . Autooverride 2 | . . . . . . . . . . 1 . . . 1 . . . . . . . . . . . Robots Hacked . | . . . . . . . . . . . . . . . . . . . . . . . . . . Non-combat . | . . . . . . . . . . . . . . . . . . . . . . . . . . Combat . | . . . . . . . . . . . . . . . . . . . . . . . . . . Robot Hacks Applied . | . . . . . . . . . . . . . . . . . . . . . . . . . . Relay Couplers Released 22 | . . . . . . 5 . 7 . 6 . . . 3 . . . . . . . . . 1 . Machine Destruction 22 | . . . . . . 5 . 7 . 6 . . . 3 . . . . . . . . . 1 . Robots Rewired 18 | . . . . . . . . 6 . . . . . . . . . . . . 12 . . . . Allies Hacked 1 | . . . . . . . . . . . . . . . . . . . . . 1 . . . . Hacks Repelled . | . . . . . . . . . . . . . . . . . . . . . . . . . . Allies | -11 -10 -10 -10 -9 -8 -8 -8 -8 -7 -7 -6 -6 -6 -6 -5 -5 -5 -5 -4 -4 -4 -4 -4 -4 -3 -------- Run | Scr Mat Min Exi Min Mat Gar Mat Gar Fac Gar Fac Was Fac Gar Fac Upp Upp Zhi Pro Fac Ext Cet Arc Hub Res Total Allies 35 | . . 3 . . . . . 6 . . . 1 . . . . . . . 1 19 5 . . . Largest Group 21 | . . 3 3 3 1 . . 3 1 . . 1 . . . . . . . 1 18 21 20 18 . Highest-Rated Group 1230 | . . 40 40 40 16 . . 45 15 . . 31 . . . . . . . 44 850 1230 1184 979 . Highest-Rated Ally 156 | . . 16 16 16 16 . . 15 15 . . 31 . . . . . . . 44 156 156 156 94 . Total Orders 15 | . . . . . . . . . . . . . 5 . 2 . . . . . . . . 8 . STAY 1 | . . . . . . . . . . . . . . . . . . . . . . . . 1 . GOTO 2 | . . . . . . . . . . . . . . . . . . . . . . . . 2 . FOLLOW 2 | . . . . . . . . . . . . . 2 . . . . . . . . . . . . EXPLORE 10 | . . . . . . . . . . . . . 3 . 2 . . . . . . . . 5 . Ally Attacks 281 | . . 15 . 9 19 . . 12 . . . 2 . . . . . . . . 83 15 4 122 . Total Damage 7571 | . . 182 . 62 142 . . 239 . . . 40 . . . . . . . . 2015 560 98 4233 . Kills 52 | . . 5 . 1 1 . . 8 . . . . . . . . . . . . 15 3 . 19 . Allies Corrupted 4 | . . . . . . . . . . . . . . . . . . . . . . . . 4 . Allies Melted . | . . . . . . . . . . . . . . . . . . . . . . . . . . Intel | -11 -10 -10 -10 -9 -8 -8 -8 -8 -7 -7 -6 -6 -6 -6 -5 -5 -5 -5 -4 -4 -4 -4 -4 -4 -3 ------- Run | Scr Mat Min Exi Min Mat Gar Mat Gar Fac Gar Fac Was Fac Gar Fac Upp Upp Zhi Pro Fac Ext Cet Arc Hub Res Robot Analysis Total 4 | . . . . . . . . . . . . . . . . . . 4 . . . . . . . Derelict Logs Recovered 5 | . . 2 . 1 . . . . . . . . . . . . 2 . . . . . . . . Drone Launches 14 | . . . . . . . . . . . . . 2 . 2 . . . . . 2 . . 8 . Drone Recoveries . | . . . . . . . . . . . . . . . . . . . . . . . . . . Exploration | -11 -10 -10 -10 -9 -8 -8 -8 -8 -7 -7 -6 -6 -6 -6 -5 -5 -5 -5 -4 -4 -4 -4 -4 -4 -3 ------------- Run | Scr Mat Min Exi Min Mat Gar Mat Gar Fac Gar Fac Was Fac Gar Fac Upp Upp Zhi Pro Fac Ext Cet Arc Hub Res Turns Passed 13419 | 35 631 818 331 814 423 501 179 697 1207 340 22 55 781 535 1436 130 122 102 320 809 893 282 157 351 1448 Spaces Moved 16705 | 32 397 712 296 744 580 708 328 876 2017 677 58 135 1078 644 2154 228 277 211 307 1578 931 285 120 416 916 Core 3 | 1 . . . . 1 . . . . . . . . . 1 . . . . . . . . . . Treads . | . . . . . . . . . . . . . . . . . . . . . . . . . . Legs . | . . . . . . . . . . . . . . . . . . . . . . . . . . Wheels 1476 | 31 397 712 296 40 . . . . . . . . . . . . . . . . . . . . . Hover 15226 | . . . . 704 579 708 328 876 2017 677 58 135 1078 644 2153 228 277 211 307 1578 931 285 120 416 916 Flight . | . . . . . . . . . . . . . . . . . . . . . . . . . . Fastest Speed 34 | 50 100 100 100 80 46 46 46 46 34 38 38 38 38 38 34 38 38 38 38 38 38 38 38 38 69 Average Speed 53 | 98 100 100 106 80 56 46 46 46 48 38 38 38 38 65 45 38 38 38 38 38 38 38 38 61 90 Slowest Speed 950 | 100 100 100 110 110 350 46 46 46 106 38 38 38 38 102 950 38 38 96 38 92 38 38 38 138 138 Overloaded Moves 351 | . . . . . . . . . 4 . . . . . 289 . . . . . . . . 37 21 Propulsion Burnouts . | . . . . . . . . . . . . . . . . . . . . . . . . . . Robots Hopped . | . . . . . . . . . . . . . . . . . . . . . . . . . . Cave-ins Triggered 2 | . . . . . . . . . . . . . . . . . . . . . . 2 . . . Teleports 1 | . . . . . . . . . . . . . . . . . . 1 . . . . . . . Exploration Rate (%) 60 | 3 75 99 60 98 48 93 30 84 57 76 4 87 35 86 68 44 40 62 52 48 88 78 83 61 23 Regions Visited 25 Branch Regions 11 Pre-discovered Areas 5 | . . . 1 1 . . . . . . . . . . . . . 3 . . . . . . . Known Exits Taken 11 | . 1 1 1 1 1 . 1 . 1 . . . 1 . 1 . . . 1 1 . . . . . Unknown Exits Taken 8 | 1 . . . . . . . . . . . . . . . 1 1 1 . . 1 1 1 1 . Scrap Searched 7 | . . 2 . 1 . . . . . . . . . . . . 2 . 2 . . . . . . Spaces Dug 42 | . . . . . . . . . . . . . . . . . . . . 8 1 21 . . 12 Terrain Destroyed 1157 | . 16 1 . 29 49 . 4 . 71 . . . 64 74 120 14 14 . 13 160 76 27 6 205 214 Melee . | . . . . . . . . . . . . . . . . . . . . . . . . . . Projectile 710 | . . . . 29 49 . 4 . 38 . . . 40 . 83 14 14 . 13 78 76 27 6 40 199 AOE 447 | . 16 1 . . . . . . 33 . . . 24 74 37 . . . . 82 . . . 165 15 Actions | -11 -10 -10 -10 -9 -8 -8 -8 -8 -7 -7 -6 -6 -6 -6 -5 -5 -5 -5 -4 -4 -4 -4 -4 -4 -3 --------- Run | Scr Mat Min Exi Min Mat Gar Mat Gar Fac Gar Fac Was Fac Gar Fac Upp Upp Zhi Pro Fac Ext Cet Arc Hub Res Total 20961 | 34 546 788 313 957 674 882 355 1163 2244 768 58 137 1449 756 2625 270 292 230 509 1808 1494 463 232 490 1424 Wait 1889 | . 26 29 15 174 29 55 25 76 103 5 . . 295 28 237 25 . . 175 75 251 137 85 7 37 Move 16676 | 31 396 711 295 743 579 706 327 874 2016 675 58 134 1077 642 2153 227 276 210 306 1577 930 283 119 415 916 Hop . | . . . . . . . . . . . . . . . . . . . . . . . . . . Pick Up 30 | . 2 1 . . 3 . . 1 3 . . 1 3 1 4 . . . . 5 2 . . . 4 Fast Attach 119 | 3 1 2 1 2 9 . . 1 15 1 . 1 1 1 24 . 2 11 . 16 1 . . 10 17 Attach 8 | . . . . . 1 . . 1 . . . . . . 1 . . . . 3 1 . . . 1 Detach 12 | . . . . . 2 . . 1 . . . . . . 4 . . . . 3 1 . . . 1 Swap 29 | . . . . . . . . . 7 . . 1 2 . 4 . 2 . 2 2 3 . . 2 4 Drop 113 | . 1 2 2 2 7 . . 1 14 1 . . 3 1 25 . 2 9 . 19 3 . . 3 18 Fire 1151 | . 86 27 . 24 32 54 3 68 63 48 . . 39 43 122 14 10 . 17 94 120 29 11 38 209 Melee . | . . . . . . . . . . . . . . . . . . . . . . . . . . Ram 1 | . . . . . . . . . . . . . . . . . . . . . . . 1 . . Kick . | . . . . . . . . . . . . . . . . . . . . . . . . . . Crush . | . . . . . . . . . . . . . . . . . . . . . . . . . . Escape Stasis 222 | . . . . . . 52 . 26 . 24 . . 13 26 . . . . . . 13 1 . . 67 Rewire 231 | . . . . . . . . 96 . . . . . . . . . . . . 135 . . . . Trap . | . . . . . . . . . . . . . . . . . . . . . . . . . . Miscellaneous 480 | . 34 16 . 12 12 15 . 18 23 14 . . 16 14 51 4 . . 9 14 34 13 16 15 150 Route ------- -11/Scrapyard -10/Materials (discovered 4 exits: [*Mat x2] / *Min x2) -10/Mines (discovered 3 exits: [*Mat x2] / *Exi) -10/Exiles -9/Mines (discovered 2 exits: *Mat x2) -8/Materials (discovered 3 exits: *Fac x2 / Gar) -8/Garrison (discovered 3 exits: *Mat x3) -8/Materials (discovered 2 exits: *Fac / Gar) -8/Garrison (discovered 3 exits: *Fac x3) -7/Factory (discovered 5 exits: [*Fac x2] / *Low x2 / Gar) -7/Garrison (discovered 2 exits: [*Fac x2]) -6/Factory -6/Waste -6/Factory (discovered 5 exits: *Fac x2 / *Low x2 / Gar) -6/Garrison (discovered 3 exits: *Fac x3) -5/Factory (discovered 5 exits: *Fac x3 / *Upp x2) -5/Upper Caves -5/Upper Caves (discovered 2 exits: Fac / *Zhi) -5/Zhirov -4/Proximity Caves -4/Factory (discovered 6 exits: *Res x2 / Upp x2 / *Ext x2) -4/Extension (discovered 3 exits: *Res x2 / *Cet) -4/Cetus -4/Archives (discovered 3 exits: *Res / *Hub x2) -4/Hub_04(d) (discovered 3 exits: *Res x3) -3/Research (discovered 4 exits: [*Res] / Arm / Qua x2) History --------- Turn | Location | Event 21 | -11/Scrapyard | Discovered new exit (range 16) 36 | -11/Scrapyard | Entered Materials 113 | -10/Materials | Discovered new exit (range 5) 303 | -10/Materials | Discovered new exit (range 11) 313 | -10/Materials | Discovered new exit (range 3) 314 | -10/Materials | Build established: Mutant 315 | -10/Materials | Identified exit to Mines 465 | -10/Materials | Reached level 2 573 | -10/Materials | Discovered new exit (range 15) 667 | -10/Materials | Entered Mines 726 | -10/Mines | Learned 4 Materials zone layouts 741 | -10/Mines | Assisted by bots powering up and referring to "LRC-V3" 747 | -10/Mines | Reached level 3 820 | -10/Mines | Received a Rocket Launcher from a helpful Derelict 857 | -10/Mines | Discovered new exit (range 9) 905 | -10/Mines | Reached level 4 1032 | -10/Mines | Deemed a non-threat by the Exiles lab entrance 1033 | -10/Mines | Discovered new exit (range 5) 1036 | -10/Mines | Identified exit to Exiles 1090 | -10/Mines | Discovered new exit (range 10) 1231 | -10/Mines | A weapon hastily lodged in a ceiling crevice suddenly fell to the ground 1236 | -10/Mines | Upgraded with Weapon slot (x1) 1485 | -10/Mines | Entered Exiles 1485 | -10/Exiles | Accompanied by 3 allies 1512 | -10/Exiles | Met 8R-AWN 1526 | -10/Exiles | Met EX-HEX 1556 | -10/Exiles | Met EX-BIN 1570 | -10/Exiles | Aligned with FarCom system 1571 | -10/Exiles | Given EX-Vault access code 1594 | -10/Exiles | Opened EX-Vault 1601 | -10/Exiles | Upgraded with Weapon slot (x2) 1603 | -10/Exiles | Found XL Autogun Array 1631 | -10/Exiles | Warned to stay clear of 0b10 Research branches 1641 | -10/Exiles | Exiles lab attacked by MAIN.C 1668 | -10/Exiles | Learned location of Zion (-6) 1743 | -10/Exiles | Discovered new exit (range 14) 1805 | -10/Exiles | Identified exit to Mines 1816 | -10/Exiles | Left Exiles lab with XL Autogun Array 1816 | -10/Exiles | Entered Mines 1816 | -9/Mines | Accompanied by 3 allies 1817 | -9/Mines | Assembled infested the area 1903 | -9/Mines | Build established: Gunner 1913 | -9/Mines | Learned Materials security intel 1942 | -9/Mines | Reached level 5 1955 | -9/Mines | Discovered new exit (range 14) 1976 | -9/Mines | Identified exit to Materials 2448 | -9/Mines | Discovered exit to Materials (range 6) 2510 | -9/Mines | Learned location of Storage (-9) 2630 | -9/Mines | Found a hidden stash of uninstalled traps 2630 | -9/Mines | Entered Materials 2630 | -8/Materials | Accompanied by 1 ally 2631 | -8/Materials | Identified exit to Factory 2632 | -8/Materials | Reached level 6 2651 | -8/Materials | Upgraded with Propulsion slot (x1) 2720 | -8/Materials | Reached level 7 2849 | -8/Materials | Garrison activated, responded to threat 2897 | -8/Materials | Reached level 8 2918 | -8/Materials | Upgraded with Propulsion slot (x1) 3015 | -8/Materials | Discovered exit to Factory (range 12) 3053 | -8/Materials | Identified exit to Garrison 3053 | -8/Materials | Entered Garrison 3056 | -8/Garrison | Installed Relay Interface Framework 3070 | -8/Garrison | Triggered checkpoint 3073 | -8/Garrison | Reached level 9 3113 | -8/Garrison | Destroyed 7 combat bots 3146 | -8/Garrison | Garrison Relay disabled 3178 | -8/Garrison | Triggered checkpoint 3189 | -8/Garrison | Triggered checkpoint 3227 | -8/Garrison | Reached level 10 3228 | -8/Garrison | Triggered checkpoint 3233 | -8/Garrison | Garrison Relay disabled 3264 | -8/Garrison | Destroyed 10 combat bots 3284 | -8/Garrison | Discovered new exit (range 14) 3323 | -8/Garrison | Discovered new exit (range 12) 3342 | -8/Garrison | Triggered checkpoint 3432 | -8/Garrison | Triggered checkpoint 3482 | -8/Garrison | Discovered new exit (range 12) 3504 | -8/Garrison | Garrison Relay disabled 3504 | -8/Garrison | Reached level 11 3530 | -8/Garrison | Triggered checkpoint 3554 | -8/Garrison | Entered Materials 3696 | -8/Materials | Discovered exit to Factory (range 15) 3732 | -8/Materials | Identified exit to Garrison 3733 | -8/Materials | Entered Garrison 3740 | -8/Garrison | Triggered checkpoint 3769 | -8/Garrison | Garrison Relay disabled 3781 | -8/Garrison | Triggered checkpoint 4062 | -8/Garrison | Triggered checkpoint 4062 | -8/Garrison | Reached level 12 4073 | -8/Garrison | Triggered checkpoint 4088 | -8/Garrison | Triggered checkpoint 4089 | -8/Garrison | Triggered checkpoint 4120 | -8/Garrison | Destroyed 10 combat bots 4136 | -8/Garrison | Triggered checkpoint 4136 | -8/Garrison | Garrison Relay disabled 4160 | -8/Garrison | Discovered exit to Factory (range 12) 4170 | -8/Garrison | Expanded RIF knowledge: Robot Detection 4170 | -8/Garrison | Reached level 13 4205 | -8/Garrison | Discovered exit to Factory (range 12) 4218 | -8/Garrison | Triggered checkpoint 4223 | -8/Garrison | Garrison Relay disabled 4298 | -8/Garrison | Discovered exit to Factory (range 9) 4311 | -8/Garrison | Triggered checkpoint 4346 | -8/Garrison | Triggered checkpoint 4350 | -8/Garrison | Garrison Relay disabled 4430 | -8/Garrison | Entered Factory 4430 | -7/Factory | Accompanied by 1 ally 4432 | -7/Factory | Reached level 14 4436 | -7/Factory | Upgraded with Utility slot (x1) 4564 | -7/Factory | Identified exit to Lower Caves 4564 | -7/Factory | Central database locked down 4796 | -7/Factory | Upgraded with Propulsion slot (x1) 4832 | -7/Factory | Upgraded with Power slot (x1) 4975 | -7/Factory | Upgraded with Utility slot (x1) 5002 | -7/Factory | Discovered new exit (range 11) 5004 | -7/Factory | Reached level 15 5230 | -7/Factory | First assault squad dispatched 5252 | -7/Factory | Garrison activated, responded to threat 5299 | -7/Factory | Destroyed 9 combat bots 5337 | -7/Factory | Reached level 16 5381 | -7/Factory | Destroyed 7 combat bots 5486 | -7/Factory | Fabricated Imp. Weapon Cycler (x2) 5513 | -7/Factory | Discovered new exit (range 5) 5637 | -7/Factory | Identified exit to Garrison 5637 | -7/Factory | Entered Garrison 5682 | -7/Garrison | Triggered checkpoint 5693 | -7/Garrison | Garrison Relay disabled 5710 | -7/Garrison | Destroyed 8 combat bots 5731 | -7/Garrison | Triggered checkpoint 5732 | -7/Garrison | Reached level 17 5743 | -7/Garrison | Triggered checkpoint 5759 | -7/Garrison | Triggered checkpoint 5781 | -7/Garrison | Destroyed 12 combat bots 5797 | -7/Garrison | Discovered new exit (range 10) 5805 | -7/Garrison | Expanded RIF knowledge: Autooverride 5828 | -7/Garrison | Triggered checkpoint 5838 | -7/Garrison | Garrison Relay disabled 5928 | -7/Garrison | Discovered new exit (range 12) 5944 | -7/Garrison | Triggered checkpoint 5948 | -7/Garrison | High security lockdown imminent 5954 | -7/Garrison | Garrison Relay disabled 5977 | -7/Garrison | Entered Factory 5979 | -6/Factory | Reached level 18 5999 | -6/Factory | Sucked down chute 5999 | -6/Factory | Entered Waste 6000 | -6/Waste | Met a frightened Derelict 6003 | -6/Waste | Spotted C-40 Crusher 6014 | -6/Waste | EMP discharged 6022 | -6/Waste | Spotted C-40 Crusher 6035 | -6/Waste | Spotted C-40 Crusher 6035 | -6/Waste | Spotted C-40 Crusher 6038 | -6/Waste | Spotted C-40 Crusher 6045 | -6/Waste | Discovered new exit (range 16) 6048 | -6/Waste | Spotted C-40 Crusher 6054 | -6/Waste | Entered Factory 6084 | -6/Factory | Upgraded with Utility slot (x1) 6228 | -6/Factory | Discovered new exit (range 11) 6312 | -6/Factory | Garrison activated, responded to threat 6339 | -6/Factory | Discovered new exit (range 9) 6424 | -6/Factory | Identified exit to Lower Caves 6455 | -6/Factory | Discovered new exit (range 21) 6461 | -6/Factory | Reached level 19 6834 | -6/Factory | Identified exit to Garrison 6835 | -6/Factory | Entered Garrison 6872 | -6/Garrison | Triggered checkpoint 6892 | -6/Garrison | Triggered checkpoint 6900 | -6/Garrison | Garrison Relay disabled 6914 | -6/Garrison | Destroyed 10 combat bots 6961 | -6/Garrison | Garrison Relay disabled 6971 | -6/Garrison | Discovered new exit (range 10) 7050 | -6/Garrison | Discovered new exit (range 6) 7110 | -6/Garrison | Triggered checkpoint 7158 | -6/Garrison | Triggered checkpoint 7192 | -6/Garrison | Discovered new exit (range 10) 7206 | -6/Garrison | Expanded RIF knowledge: Autooverride 7226 | -6/Garrison | Triggered checkpoint 7286 | -6/Garrison | Triggered checkpoint 7363 | -6/Garrison | Phase Generator disabled 7363 | -6/Garrison | Reached level 20 7370 | -6/Garrison | Entered Factory 7487 | -5/Factory | Found Prototype Processor 7487 | -5/Factory | Identified Exp. Signal Interpreter 7596 | -5/Factory | Discovered new exit (range 9) 7630 | -5/Factory | Spotted B-75 Beast 7645 | -5/Factory | Reached level 21 7896 | -5/Factory | Discovered new exit (range 27) 7970 | -5/Factory | First assault squad dispatched 8049 | -5/Factory | Found Prototype Processor 8049 | -5/Factory | Identified Exp. Targeting Computer 8083 | -5/Factory | Found Prototype Processor 8083 | -5/Factory | Identified Exp. Terrain Scan Processor 8145 | -5/Factory | Reached level 22 8245 | -5/Factory | Discovered new exit (range 110) 8338 | -5/Factory | Garrison activated, responded to threat 8368 | -5/Factory | Destroyed 9 combat bots 8415 | -5/Factory | Discovered new exit (range 15) 8677 | -5/Factory | Discovered new exit (range 16) 8687 | -5/Factory | Identified exit to Upper Caves 8806 | -5/Factory | Entered Upper Caves 8844 | -5/Upper Caves | Reached level 23 8845 | -5/Upper Caves | Attracted the attention of an 0b10 checkpoint 8930 | -5/Upper Caves | Discovered new exit (range 14) 8936 | -5/Upper Caves | Entered another Upper Caves area 8948 | -5/Upper Caves | Attacked by a delusional Derelict stockpiling parts 8967 | -5/Upper Caves | Identified exit to Factory 9036 | -5/Upper Caves | Spotted B-75 Beast 9037 | -5/Upper Caves | Destroyed B-75 Beast 9056 | -5/Upper Caves | Discovered new exit (range 7) 9058 | -5/Upper Caves | Entered Zhirov 9058 | -5/Zhirov | Discovered new exit (range 3) 9065 | -5/Zhirov | Met Zhirov 9074 | -5/Zhirov | Learned location of Quarantine (-3) 9074 | -5/Zhirov | Learned location of Testing (-2) 9074 | -5/Zhirov | Learned location of Command (-1) 9083 | -5/Zhirov | Zhirov requested help retrieving the SGEMP Prototype 9091 | -5/Zhirov | Found Alien Artifact 9091 | -5/Zhirov | Identified Integrated Dissipator 9091 | -5/Zhirov | Installed Integrated Dissipator, increased core heat dissipation (+2%) 9126 | -5/Zhirov | Found Alien Artifact 9126 | -5/Zhirov | Identified Transdimensional Reconstructor 9126 | -5/Zhirov | Warped through subspace 9160 | -5/Zhirov | Entered Proximity Caves 9219 | -4/Proximity Caves | Reached level 24 9302 | -4/Proximity Caves | Discovered exit to Factory (range 6) 9308 | -4/Proximity Caves | Attracted the attention of an 0b10 checkpoint 9387 | -4/Proximity Caves | Received a Behemoth hack from an annoying Tinkerer 9480 | -4/Proximity Caves | Entered Factory 9610 | -4/Factory | Reached level 25 9619 | -4/Factory | Upgraded with Utility slot (x1) 9698 | -4/Factory | Discovered new exit (range 16) 9730 | -4/Factory | First assault squad dispatched 9784 | -4/Factory | Local fabrication network quarantined 9870 | -4/Factory | Destroyed 8 combat bots 9940 | -4/Factory | Identified exit to Upper Caves 9940 | -4/Factory | Identified exit to Extension 9994 | -4/Factory | Upgraded with Utility slot (x1) 10016 | -4/Factory | Discovered new exit (range 17) 10200 | -4/Factory | Reached level 26 10221 | -4/Factory | High security lockdown imminent 10289 | -4/Factory | Entered Extension 10408 | -4/Extension | Rescued a captive Derelict 10409 | -4/Extension | Rescued a captive Derelict 10776 | -4/Extension | Build established: Commander-Gunner 10789 | -4/Extension | First assault squad dispatched 10850 | -4/Extension | Spotted B-86 Titan 10853 | -4/Extension | Spotted B-86 Titan 10858 | -4/Extension | Destroyed B-86 Titan 10862 | -4/Extension | Destroyed B-86 Titan 10870 | -4/Extension | Reached level 27 10889 | -4/Extension | Disrupted transfer network 10907 | -4/Extension | Rescued a captive Derelict 10907 | -4/Extension | Rescued a captive Derelict 10922 | -4/Extension | Rescued A7 10934 | -4/Extension | High security lockdown imminent 10959 | -4/Extension | Destroyed 26 combat bots 10959 | -4/Extension | Energy Cycler disabled 10959 | -4/Extension | Discovered new exit (range 50) 10971 | -4/Extension | Rescued a captive Derelict 10972 | -4/Extension | Rescued a captive Derelict 11014 | -4/Extension | High security lockdown engaged 11077 | -4/Extension | Reached level 28 11121 | -4/Extension | Discovered new exit (range 10) 11126 | -4/Extension | Discovered new exit (range 8) 11133 | -4/Extension | Disrupted transfer network 11159 | -4/Extension | Destroyed 21 combat bots 11182 | -4/Extension | Entered Cetus 11182 | -4/Cetus | Accompanied by 18 allies 11187 | -4/Cetus | Acquired a Cetus Manufacturing Module code from A7 11188 | -4/Cetus | Spotted Cetus Guard 11188 | -4/Cetus | Spotted Cetus Guard 11190 | -4/Cetus | Destroyed Cetus Guard 11192 | -4/Cetus | Destroyed Cetus Guard 11193 | -4/Cetus | Spotted Cetus Guard 11195 | -4/Cetus | Spotted Cetus Guard 11199 | -4/Cetus | Destroyed Cetus Guard 11202 | -4/Cetus | Destroyed Cetus Guard 11227 | -4/Cetus | Started Cetus Manufacturing Module 11231 | -4/Cetus | Escorted A7 to Cetus Mainframe 11252 | -4/Cetus | Manufactured an Enhanced Grunt 11277 | -4/Cetus | Manufactured an Enhanced Grunt 11302 | -4/Cetus | Manufactured an Enhanced Grunt 11312 | -4/Cetus | Crushed by falling debris 11313 | -4/Cetus | Crushed by falling debris 11314 | -4/Cetus | Core integrity fell below 50% 11327 | -4/Cetus | Manufactured an Enhanced Grunt 11352 | -4/Cetus | Manufactured an Enhanced Grunt 11391 | -4/Cetus | Discovered new exit (range 16) 11464 | -4/Cetus | Entered Archives 11464 | -4/Archives | Accompanied by 20 allies 11469 | -4/Archives | Received a hacking code to weaken MAIN.C 11482 | -4/Archives | Discovered new exit (range 17) 11484 | -4/Archives | Discovered new exit (range 16) 11499 | -4/Archives | Discovered new exit (range 17) 11511 | -4/Archives | Unable to access archive contents 11515 | -4/Archives | Unable to access archive contents 11519 | -4/Archives | Unable to access archive contents 11621 | -4/Archives | Entered Hub_04(d) 11621 | -4/Hub_04(d) | Accompanied by 18 allies 11625 | -4/Hub_04(d) | Upgraded with Utility slot (x1) 11661 | -4/Hub_04(d) | Discovered new exit (range 6) 11668 | -4/Hub_04(d) | Discovered new exit (range 30) 11668 | -4/Hub_04(d) | Discovered new exit (range 30) 11731 | -4/Hub_04(d) | Destroyed 9 combat bots 11741 | -4/Hub_04(d) | Upgraded with Weapon slot (x4) 11744 | -4/Hub_04(d) | Reached level 29 11754 | -4/Hub_04(d) | Network Hub disabled 11828 | -4/Hub_04(d) | Spotted Lightning 11829 | -4/Hub_04(d) | Destroyed Lightning 11831 | -4/Hub_04(d) | Spotted Lightning 11831 | -4/Hub_04(d) | Spotted Lightning 11833 | -4/Hub_04(d) | Destroyed Lightning 11837 | -4/Hub_04(d) | Destroyed Lightning 11845 | -4/Hub_04(d) | Found Prototype Device 11845 | -4/Hub_04(d) | Identified Exp. Phase Shifter 11848 | -4/Hub_04(d) | Found Prototype Device 11848 | -4/Hub_04(d) | Identified EM Dispersion Field 11854 | -4/Hub_04(d) | Upgraded with Utility slot (x1) 11857 | -4/Hub_04(d) | Upgraded with Power slot (x1) 11871 | -4/Hub_04(d) | First assault squad dispatched 11916 | -4/Hub_04(d) | Spotted Lightning 11918 | -4/Hub_04(d) | Network Hub disabled 11918 | -4/Hub_04(d) | Spotted Lightning 11918 | -4/Hub_04(d) | Spotted Lightning 11920 | -4/Hub_04(d) | Destroyed Lightning 11953 | -4/Hub_04(d) | Core integrity fell below 20% 11972 | -4/Hub_04(d) | Entered Research 11973 | -3/Research | Core integrity fell below 50% 11973 | -3/Research | Core integrity fell below 20% 12011 | -3/Research | Upgraded with Propulsion slot (x2) 12195 | -3/Research | Discovered new exit (range 9) 12222 | -3/Research | First assault squad dispatched 12397 | -3/Research | Identified exit to Armory 12397 | -3/Research | Identified exit to Quarantine 12448 | -3/Research | Reached level 30 12560 | -3/Research | High security lockdown imminent 12640 | -3/Research | High security lockdown engaged 12896 | -3/Research | Spotted Executioner 12901 | -3/Research | Destroyed Executioner 12922 | -3/Research | Found Prototype Device 12922 | -3/Research | Identified Adv. Kinecellerator 12928 | -3/Research | Destroyed 12 combat bots 13032 | -3/Research | Destroyed 12 combat bots 13068 | -3/Research | Spotted Investigator 13070 | -3/Research | Scanned by Researcher 13071 | -3/Research | Destroyed Investigator 13108 | -3/Research | Spotted Striker 13111 | -3/Research | Spotted Executioner 13111 | -3/Research | Spotted Executioner 13112 | -3/Research | Destroyed Striker 13120 | -3/Research | Destroyed Executioner 13124 | -3/Research | Destroyed Executioner 13124 | -3/Research | Reached level 31 13159 | -3/Research | Destroyed 25 combat bots 13208 | -3/Research | Spotted Executioner 13220 | -3/Research | Destroyed Executioner 13245 | -3/Research | Spotted Executioner 13256 | -3/Research | Destroyed Executioner 13264 | -3/Research | System corruption reached 10% 13291 | -3/Research | Destroyed 13 combat bots 13398 | -3/Research | Spotted Executioner 13402 | -3/Research | Spotted Striker 13420 | -3/Research | Destroyed by P-80 Master with Gamma Rifle Last Messages --------------- 13410_ System corrupted: Helical Railgun targeting data glitched. 13410_ L-61 Swordsman suffers critical hit. 13410_ Destroyed Lgt. Antimatter Reactor. 13410_ L-61 Swordsman knocked back. 13410_ HV Slug penetrates L-61 Swordsman. 13410_ P-80 Master resets P-80 Master, system corruption cleaned. 13414_ System corrupted: Helical Railgun targeting data glitched. 13414_ System corrupted: Hyp. Mass Driver targeting data glitched. 13414_ HV Slug penetrates Wall. 13417_ Slug penetrates Wall. 13419_ Slug penetrates Striker. 13419_ Slug penetrates Wall. 13419_ Striker suffers critical hit. 13419_ Striker knocked back. 13419_ System corrupted: Hyp. Mass Driver targeting data glitched. 13419_ Striker suffers critical hit. 13420_ Striker destroyed. [Achievement: 50k Club] [Achievement: This Is Interesting...] [Achievement: Rambo] Map ----- +----------------------------------------------------+ | # ##########+###### #??????????????????????? | | # ???????# ## ###????????????????????? | | # ????????# ## *% T"#????????????????????? | | # ?????????# "" ##!==[""#????????????????????? | | #??????????# =* ##%=[ ###????????????????????? | | ???????????# =%= ##[[=i#??????????????????????? | | ???????????# % ## #?????????????########## | | ???????????# ! = ## #?????????????# # | | ???????????# ## ############### # | | ???????????# ## # # ! ! # | | ???????????######"#"## + ! # # | | ????????????????# " ; # ] # """# | | ????????????????# # ; # # """# | | ????????????????# # #;%%=[#? # """# | | ???????????????## " ; *!%#? # # | | ???????????????#" ###;[=%[;#?##"######### # | | ???????????????## "# ; !=%!!###"###########+###### | | ????????????????# ##?# [%=!=%!! #?? | | ????????????????#*#??#m =!= #?? | | ???###########??#!#??# = ^ #?? | | ???# # #??# g pg! #?? | | ???# #!#?## b##"i*#"#"##"##### #?? | | ???# # ###; #?"gE #???# #?? | | ???# #*%% bg#?#h #???# ### | | ???# #[% ig### ##### | | ???# #= % @%;h + | | ???# #= p lY ##### | | ???# + #;; #???# | | ???# # ######## ! #???####+### | | ???# # #??????# #??????# | | ???# # #??????#""#;######??????#! | | ???# ^ # #??????######???????????# | | #######"#""""""#" #???????????????????????# | | # # [ #???????????????????????# | | # "*i=== #???????????????????????# | | # "=*/=%* #???????????????????????# | | # %!%%%%% #???????????????????????# | | # #=![%########???????????????????????##### | | # %==!%#??????????????????????????????????? | | # """ !!=%[[#??????????????????????????????????? | | # """ =*==*!#??????????????????????????????????? | | # """ %%%%[%#??????????????????????????????????? | | #########= [=!#??????????????????????????????????? | | ????????#!=[[ ##########?????????????????????????? | | ????????#!![! #* #?????????????????????????? | | ????????##%[!|%|=* #?###?????????????????????? | | ?????????#!!!%!= #?# #?????????????????????? | | ?????????# !*="= #?# #?????????????????????? | | ?????????# **" #?# #?????????????????????? | | ?????????# =*" """" #?# #?????????????????????? | +----------------------------------------------------+ Best States ------------- Heat Dissipation 56 Coolant Potential 100 Energy Generation 63 Energy Capacity 840 Matter Stores 500 Matter Capacity 500 Sight Range 17 Terrain Scan Density 10 Additional Mass Support 12 Resistance: KI 20 Resistance: TH 20 Resistance: EM 75 Weapon Cycling 25 Phase Shifting 20 Evasion (%) 79 Targeting Accuracy 12 Matter Filtering 50 Kinecelleration 50 Overload Amplification 50 Item Schematics ----------------- Cmb. Airjet | -8/Materials | Scanalyzed Plasma Cutter | -8/Materials | Scanalyzed Gatling Laser | -7/Factory | Extracted Titanium Leg | -7/Factory | Extracted Lightning Gun | -7/Factory | Extracted Gauss Cannon | -7/Factory | Extracted Imp. Weapon Cycler | -7/Factory | Hacked Lgt. Particle Reactor | -6/Factory | Scanalyzed Power Sword | -6/Factory | Scanalyzed Imp. Targeting Computer | -6/Factory | Extracted Insulated Plating | -6/Factory | Extracted Lrn. Tractor Beam | -6/Factory | Extracted Shield Generator | -6/Factory | Extracted Pulse Rifle | -6/Factory | Extracted Coil Gun | -6/Factory | Extracted Hvy. Laser | -6/Factory | Extracted Energy Well | -6/Factory | Extracted Proton Cannon | -6/Factory | Extracted Gauss Rifle | -6/Factory | Extracted Assault Drone Bay | -5/Zhirov | Free Exp. Heat Sink | -5/Zhirov | Free Exp. Optical Array | -5/Zhirov | Free Imp. Arc Thrower | -5/Zhirov | Free Imp. System Backup Module | -4/Factory | Scanalyzed Cld. Particle Cannon | -4/Factory | Scanalyzed Hvy. Antimatter Reactor | -4/Factory | Scanalyzed F-cell Engine | -4/Factory | Scanalyzed Hvy. Neutron Cannon | -4/Factory | Hacked Linear Accelerator | -4/Factory | Hacked Imp. Gravmag System | -4/Factory | Extracted Imp. Signal Interpreter | -4/Factory | Extracted Imp. Shock Absorption System | -4/Factory | Extracted Cmb. Gravmag System | -4/Factory | Extracted Recoil Stabilizer | -4/Factory | Extracted Quantum Reactor | -4/Hub_04(d) | Hacked Robot Schematics ------------------ None Fabricated ------------ Imp. Weapon Cycler | x2 | -7/Factory Alien Tech Used ----------------- Integrated Dissipator Transdimensional Reconstructor Achievements -------------- 50k Club Alien Tech Dangerous Findings Executioner It Was An Accident, I Swear Killing Spree Main Advantage Most Wanted Preemptive Strike Prison Break Project G-00 Rambo Remodeling Rockin' Loadout Subspace Traveler System Compromised Tank The Science Guy This Is Interesting... Ultimate Loadout Unlikely Earthworm Whoosh! Challenges ------------ None RPGLIKE | -11 -10 -10 -10 -9 -8 -8 -8 -8 -7 -7 -6 -6 -6 -6 -5 -5 -5 -5 -4 -4 -4 -4 -4 -4 -3 --------- Run | Scr Mat Min Exi Min Mat Gar Mat Gar Fac Gar Fac Was Fac Gar Fac Upp Upp Zhi Pro Fac Ext Cet Arc Hub Res Levels Raised 30 | . 1 2 . 1 3 3 . 2 3 1 1 . 1 1 2 1 . . 1 2 2 . . 1 2 XP Earned 48497 | 3000 2155 2362 350 2433 3715 4177 387 3084 4557 1430 1049 97 1452 1309 4258 402 162 152 1322 3017 3104 354 160 1041 2968 XP Spent 44100 | . 3700 1800 1900 1125 3100 . 3950 750 5800 . . 1250 1100 . 100 . . . . 3625 . . . 12800 3100 Upgrades 59 | . 9 3 2 5 5 . 5 1 7 . . 1 1 . 1 . . . . 4 . . . 13 2 Power Slot 2 | . . . . . . . . . 1 . . . . . . . . . . . . . . 1 . Propulsion Slot 5 | . . . . . 2 . . . 1 . . . . . . . . . . . . . . . 2 Utility Slot 7 | . . . . . . . . . 2 . . . 1 . . . . . . 2 . . . 2 . Weapon Slot 7 | . . 1 2 . . . . . . . . . . . . . . . . . . . . 4 . Core Integrity 6 | . . . . . . . . . . . . . . . . . . . . . . . . 6 . Matter Storage 4 | . . . . 2 . . . . . . . . . . . . . . . 2 . . . . . Inventory Capacity 5 | . 1 . . . 1 . . 1 1 . . 1 . . . . . . . . . . . . . Sight Range 1 | . . . . . . . . . . . . . . . 1 . . . . . . . . . . Ranged Accuracy 7 | . 2 2 . . . . 1 . 2 . . . . . . . . . . . . . . . . KI Resistance % 4 | . . . . 2 . . 2 . . . . . . . . . . . . . . . . . . TH Resistance % 4 | . 3 . . . . . 1 . . . . . . . . . . . . . . . . . . KI Damage % 4 | . . . . 1 2 . 1 . . . . . . . . . . . . . . . . . . TH Damage % 3 | . 3 . . . . . . . . . . . . . . . . . . . . . . . . Protomatter Created 12013 | . 332 160 . 124 229 520 . 596 605 212 . . 155 457 1084 319 . . 218 869 1605 417 173 866 3072 Integrity Restored 9042 | . 707 292 . 173 219 274 . 279 409 257 . . 256 204 826 59 . . 165 240 637 280 325 192 3248 Core 6562 | . 596 241 . 118 176 199 . 214 271 209 . . 140 157 511 41 . . 136 101 481 260 243 153 2315 Parts 2480 | . 111 51 . 55 43 75 . 65 138 48 . . 116 47 315 18 . . 29 139 156 20 82 39 933 Protomatter Decayed 9173 | . 13 73 39 84 194 369 . 498 512 94 . . 62 369 772 227 . . 30 709 1279 287 63 1547 1952 Game ------ Seed AutogunGhostCarapace Manual? 0 Play Time 05:10:02 Cumulative 19.8 hours Start 2019.12.22 @ 21:31:55 End 2019.12.24 @ 12:35:24 Sessions 6 Manual Loads 0 Difficulty Rogue Special Mode Winter2019/RPGLIKE Game No. 8 Rogue 8 Adventurer 0 Explorer 0 Win Type - Total 0 Types 0/0/0/0/0/0/0 Lore% 25 Gallery% 19 Achievement% 37 Wizard Run 0 Options --------- ASCII 0 Keyboard 1 Movement Vi Keybinds 0 Fullscreen 2 Font 18/SmallcapsGlow Map View 76x50 Tactical HUD 1 Map Filters NONE Filters NONE Steam 0 RUN: 89f060f3-d57a-49d4-b917-c12fae2e1dff